[Event "16th HSG Open-A 2022"]
[Site "Hilversum"]
[Date "2022.06.19"]
[Round "6.8"]
[White "Maters, Arthur"]
[Black "Tabak, Stefan"]
[Result "1-0"]
[ECO "B31"]
[WhiteElo "2048"]
[BlackElo "2160"]
[Annotator "TA"]
[PlyCount "127"]
[EventDate "2022.06.17"]
[EventCountry "NED"]
[SourceTitle "playchess.com"]
[Source "ChessBase"]
[SourceQuality "1"]
[TimeControl "6600+10"]

{[%evp 13,127,16,16,16,25,26,21,-10,0,0,0,0,7,0,0,0,0,0,0,0,0,0,0,0,0,-6,-12,-10,-8,-6,-2,-20,0,-19,-7,-10,0,-11,-17,-3,1,0,0,0,0,0,0,-18,-14,-17,45,0,86,77,77,0,75,72,106,67,69,63,102,8,10,0,0,0,0,0,0,0,1,0,0,0,0,0,0,0,12,17,19,0,41,36,28,28,28,29,74,80,69,60,283,54,393,378,29973,721,583,498,1471,1577,1400,1108,1037,310,29978,29979,29979,29980,29989,29971,29990,29991]} 1. e4 {[%emt 0:00:01]} c5 {[%emt 0:00:04]} 2. Nf3 {[%emt 0:00:05]} Nc6 {[%emt 0:00:05]} 3. Bb5 {[%emt 0:00:03]} g6 {[%emt 0:00:05]} 4. O-O {[%emt 0:00:03]} Bg7 {[%emt 0:00:05]} 5. Re1 {[%emt 0:00:04]} e5 {[%emt 0:05:30]} 6. Bxc6 {[%emt 0:02:02]} dxc6 {[%emt 0:00:13]} 7. d3 {[%emt 0:00:12]} Qc7 {[%emt 0:00:50]} 8. Be3 {[%emt 0:00:30] B31: Sicilian: 2...Nc6 3 Bb5 g6.} b6 {[%emt 0:00:04]} 9. a4 {[%emt 0:00:32] 9.a3 is more advanced technology.} a5 {[%emt 0:00:04]} 10. c3 {[%emt 0:15:25] The position is equal.} Nf6 {[%emt 0:03:02]} 11. d4 {[%emt 0:01:33]} cxd4 {[%emt 0:01:24]} 12. cxd4 {[%emt 0:00:11]} exd4 {[%emt 0:13:35] [#]} 13. Qxd4 $146 {[%emt 0:02:28]} ({Predecessor:} 13. Bxd4 O-O 14. Qb3 c5 15. Be5 Qc6 16. Nc3 Be6 17. Qc2 Bc4 18. Rad1 Rad8 19. b3 {1-0 (30) Reinhard,M (2034)-Rechner,K (2049) Nordrheinwestfalen 2017}) 13... c5 {[%emt 0:00:13]} 14. Qd2 {[%emt 0:08:08]} O-O {[%emt 0:00:32]} 15. Bf4 {[%emt 0:03:05]} Qb7 {[%emt 0:02:51]} 16. Nc3 {[%emt 0:00:53]} Bg4 {[%emt 0:02:45]} 17. Ne5 {[%emt 0:04:27]} Be6 {[%emt 0:01:16]} 18. Nf3 {[%emt 0:15:23]} Rad8 {[%emt 0:02:03]} 19. Qe2 {[%emt 0:02:40]} Rfe8 {[%emt 0:02:46]} 20. Rad1 {[%emt 0:04:45]} Rxd1 {[%emt 0:10:36]} 21. Qxd1 {[%emt 0:04:12]} Bg4 {[%emt 0:12:12]} 22. h3 {[%emt 0:01:25]} Bd7 {[%emt 0:12:35][%cal Rf6e4]} 23. Qd3 {[%emt 0:07:16]} Nh5 {[%emt 0:01:43]} 24. Bg5 {[%emt 0:02:52]} h6 {[%emt 0:07:29]} 25. Be3 {[%emt 0:02:52]} Bc6 {[%emt 0:00:29][%cal Rc6e4]} 26. Nd2 $1 {[%emt 0:07:38]} Kh7 {[%emt 0:01:17]} 27. b3 {[%emt 0:05:21]} Nf6 {[%emt 0:06:38][%cal Rf6e4]} 28. f3 {[%emt 0:02:08]} Nd7 {[%emt 0:05:49]} 29. Nc4 {[%emt 0:01:20] Nd6 is the strong threat.} Ne5 {[%emt 0:00:13]} 30. Qd2 {[%emt 0:00:10]} Nxc4 {[%emt 0:04:10]} 31. bxc4 {[%emt 0:00:06]} Qb8 {[%emt 0:14:42]} (31... f5 $11) 32. Rb1 {[%emt 0:01:39]} h5 {[%emt 0:00:00]} (32... f5 $1 $11 {keeps the balance.}) 33. Nd5 $16 {[%emt 0:05:44]} Bxd5 {[%emt 0:00:00]} 34. Qxd5 {[%emt 0:00:17]} (34. exd5 $2 Rxe3 $1 {[%mdl 512]} 35. Qxe3 Bd4 36. Qxd4 cxd4 $19) (34. cxd5 $16 {And now Bxc5 would win.} Qd6 35. Bf4) 34... Re6 {[%emt 0:00:00] [#]} (34... Qc7 $11) 35. Qxc5 $1 {[%emt 0:03:14]} Qg3 {[%emt 0:00:00]} 36. Bf2 {[%emt 0:00:18]} Qf4 {[%emt 0:00:00]} 37. Qe3 {[%emt 0:00:13]} Qe5 {[%emt 0:00:00]} 38. g3 {[%emt 0:02:26]} (38. Rxb6 Rxb6 39. Qxb6 Qa1+ 40. Kh2 Be5+ 41. g3 Qxa4 $11) (38. Qb3 $16) 38... Rc6 $11 {[%emt 0:00:00]} 39. Qd3 {[%emt 0:00:26]} Qe6 {[%emt 0:00:00]} 40. Qd5 {[%emt 0:00:31]} Rxc4 {[%emt 0:00:00]} 41. Qxe6 {[%emt 0:00:01]} (41. Bxb6 Qxd5 42. exd5 Rb4 43. Rxb4 axb4 $17) 41... fxe6 {[%emt 0:00:00]} 42. Rxb6 {[%emt 0:00:03][%mdl 4096] Endgame KRB-KRB} e5 {[%emt 0:00:00]} 43. Ra6 {[%emt 0:01:12]} Rxa4 {[%emt 0:00:00]} 44. Be1 {[%emt 0:00:01]} Ra1 {[%emt 0:00:00]} 45. Kf2 {[%emt 0:00:02]} Ra2+ {[%emt 0:00:00]} 46. Ke3 {[%emt 0:00:16]} Ra3+ {[%emt 0:00:00]} 47. Ke2 {[%emt 0:00:01]} a4 {[%emt 0:00:00]} 48. h4 {[%emt 0:00:10]} Ra2+ {[%emt 0:00:00]} 49. Kd3 {[%emt 0:00:09]} Ra3+ {[%emt 0:00:00]} 50. Bc3 {[%emt 0:00:25]} Ra2 $1 {[%emt 0:00:00]} 51. Ra7 {[%emt 0:00:05]} Kg8 {[%emt 0:00:00]} 52. Kc4 {[%emt 0:00:08]} Rf2 {[%emt 0:00:00]} 53. f4 $1 {[%emt 0:00:01][%cal Bf3f4,Bf4e5,Be5e6,Be6e7][%mdl 32] Hoping for Ra8+.} ({But not} 53. Rxa4 Rxf3 54. Ra7 Re3 $11) 53... a3 $2 {[%emt 0:00:00]} ({Black should play} 53... Rc2 $14) 54. Rxa3 $2 {[%emt 0:01:59]} ({Worse is} 54. Bxe5 Bxe5 55. fxe5 a2 $14) (54. Ra8+ $18 Kh7 55. Bxe5 Bxe5 56. fxe5) 54... Rf3 $2 {[%emt 0:00:00][%mdl 8192]} (54... exf4 $14 55. Ra8+ Bf8) 55. Ra8+ $18 {[%emt 0:00:05]} Kh7 $2 {[%emt 0:00:00]} (55... Kf7 $18 56. Bb2 (56. Bxe5 Bxe5 57. fxe5 Rxg3 $11) (56. fxe5 Rxc3+ 57. Kxc3 Bxe5+ 58. Kc4 Bxg3 $18) 56... Rf2) 56. Ra7 {[%emt 0:00:07]} (56. Bxe5 $142 Re3 57. Kd4 Re1 58. Ra7 Kg8 59. Rxg7+ Kf8 60. Rxg6 Ke7 61. f5 Rd1+ 62. Ke3 Re1+ 63. Kd3) 56... Kg8 {[%emt 0:00:00]} 57. Bxe5 {[%emt 0:00:33]} Bxe5 {[%emt 0:00:08]} (57... Bf8 $142 58. Kd5 Rxg3) 58. fxe5 {[%emt 0:00:00] Intending e6 and mate.} Rxg3 {[%emt 0:00:02] KR-KR} 59. e6 {[%emt 0:00:01] White threatens Ra8+ and mate.} Kf8 {[%emt 0:00:06]} 60. Kd5 {[%emt 0:00:12]} g5 $2 {[%emt 0:01:31]} (60... Rf3 $18 61. Kd6 Rd3+ 62. Ke5 Rf3) 61. hxg5 {[%emt 0:00:07] White mates.} Rxg5+ {[%emt 0:00:02]} 62. Kd6 {[%emt 0:00:01]} Rg1 {[%emt 0:00:02]} 63. Ra8+ {[%emt 0:00:04]} Kg7 {[%emt 0:00:02]} 64. e7 {[%emt 0:00:02] Weighted Error Value: White=0.18 (very precise) /Black=0.51} 1-0

[Event "16th HSG Open-A 2022"]
[Site "Hilversum"]
[Date "2022.06.19"]
[Round "6.9"]
[White "Van Meegen, Ruud"]
[Black "Bosboom, Ardin"]
[Result "1-0"]
[ECO "D10"]
[WhiteElo "2275"]
[BlackElo "2093"]
[Annotator "TA"]
[PlyCount "55"]
[EventDate "2022.06.17"]
[EventCountry "NED"]
[SourceTitle "playchess.com"]
[Source "ChessBase"]
[SourceQuality "1"]
[TimeControl "6600+10"]

{[%evp 15,55,25,38,36,32,33,47,34,43,-16,81,25,200,120,227,220,295,291,295,284,298,293,287,218,350,350,334,271,260,269,299,239,484,483,497,501,577,565,954,919,1058,721]} 1. d4 {[%emt 0:00:04]} d5 {[%emt 0:00:06]} 2. c4 {[%emt 0:00:05]} c6 {[%emt 0:00:05]} 3. Nc3 {[%emt 0:00:06]} Nf6 {[%emt 0:00:05]} 4. cxd5 {[%emt 0:00:06]} cxd5 {[%emt 0:00:05]} 5. Bf4 {[%emt 0:00:07]} Nc6 {[%emt 0:00:18]} 6. e3 {[%emt 0:00:12]} a6 {[%emt 0:00:06]} 7. Bd3 {[%emt 0:00:09]} e6 {[%emt 0:01:00]} 8. Rc1 {[%emt 0:00:12]} Bd6 {[%emt 0:00:49]} 9. Bxd6 {[%emt 0:00:15] D10: Slav Defence: 3 cxd5 (without early Nf3) and 3 Nc3.} Qxd6 {[%emt 0:00:06]} 10. f4 {[%emt 0:00:13]} Bd7 {[%emt 0:03:20]} 11. Nf3 {[%emt 0:00:13] White is slightly better.} Qb4 {[%emt 0:04:48]} 12. O-O {[%emt 0:09:12] [#]} (12. Qe2 $14) 12... Na5 $146 {[%emt 1:41:22]} (12... Qxb2 $11 {keeps the balance.} 13. Na4 Qa3) ({Predecessor:} 12... Ke7 13. Ne5 Rhc8 14. a3 Qa5 15. f5 h5 16. Qe1 Qd8 17. Qg3 Qh8 18. Nxd7 Nxd7 19. fxe6 fxe6 20. e4 dxe4 21. Nxe4 Qh6 22. Qd6+ Ke8 23. Nc5 {1-0 (23) Martinovic,S (2536)-Bodiroga,P (2360) Grubisno Polje 2014}) 13. Ne5 {[%emt 0:10:00]} ({White should try} 13. Rf2 $16) 13... b5 $2 {[%emt 0:00:00] Black is on the road to losing.} (13... Qxb2 $11 {and Black is okay.} 14. g4 Rc8) 14. b3 {[%emt 0:19:27]} Nb7 {[%emt 0:00:00]} (14... Nc6 $16 {might work better.}) 15. g4 $18 {[%emt 0:16:52][%cal Bg2g4,Bg4g5][%mdl 32]} h5 {[%emt 0:00:00]} 16. g5 {[%emt 0:10:55]} Ng4 {[%emt 0:00:00]} 17. Qe1 {[%emt 0:06:50]} ({Weaker is} 17. Nxg4 hxg4 18. Qxg4 Rc8 $16) 17... Nxe5 {[%emt 0:00:00]} 18. fxe5 {[%emt 0:00:10]} Qe7 {[%emt 0:00:00]} 19. h4 {[%emt 0:01:09]} b4 {[%emt 0:00:00]} (19... Rc8 $142 20. Ne2 Rxc1 21. Qxc1 Nd8) 20. Ne2 {[%emt 0:00:49][%cal Bc3e2,Be2f4,Bf4d3,Bd3f4,Bf4g6][%mdl 32]} Bb5 {[%emt 0:00:00]} 21. Nf4 {[%emt 0:00:56][%cal Of4g6] [#] Hoping for Ng6!} Bxd3 {[%emt 0:00:00]} 22. Nxd3 {[%emt 0:00:06]} a5 {[%emt 0:00:00]} 23. Rc2 {[%emt 0:06:59] Qc1 is the strong threat.} O-O $2 {[%emt 0:00:00]} (23... Nd8 24. Nf4 Ra7) 24. Qd1 {[%emt 0:01:54] White is clearly winning.} g6 {[%emt 0:00:00]} 25. Rf6 {[%emt 0:05:54]} Rac8 {[%emt 0:00:00]} 26. Nf4 {[%emt 0:03:37][%cal Of4g6] [#] Black must now prevent Nxg6!} Qd7 {[%emt 0:00:00]} 27. Rf2 {[%emt 0:02:10][%cal Of4g6] Threatens to win with Nxg6!} Qc7 {[%emt 0:00:00]} 28. Nxg6 {[%emt 0:01:17] Weighted Error Value: White=0.24 (precise) /Black=0.69} 1-0

[Event "16th HSG Open-A 2022"]
[Site "Hilversum"]
[Date "2022.06.19"]
[Round "6.10"]
[White "Honkoop, Gilian"]
[Black "Schilstra, Laurens"]
[Result "1-0"]
[ECO "D91"]
[WhiteElo "2197"]
[BlackElo "1963"]
[Annotator "TA"]
[PlyCount "64"]
[EventDate "2022.06.17"]
[EventCountry "NED"]
[SourceTitle "playchess.com"]
[Source "ChessBase"]
[SourceQuality "1"]
[TimeControl "6600+10"]

{[%evp 11,64,37,41,29,28,31,44,54,35,41,50,54,94,94,131,110,118,110,122,106,132,122,159,141,203,159,198,204,188,137,314,312,322,303,332,299,393,392,526,538,805,795,854,694,679,683,640,660,665,614,622,482,429,434,725]} 1. c4 {[%emt 0:00:20]} Nf6 {[%emt 0:00:11]} 2. Nf3 {[%emt 0:00:02]} g6 {[%emt 0:00:08]} 3. d4 {[%emt 0:00:04]} Bg7 {[%emt 0:00:05]} 4. Nc3 {[%emt 0:00:03]} O-O {[%emt 0:00:16]} 5. Bg5 {[%emt 0:01:20]} c6 {[%emt 0:01:33]} 6. e3 {[%emt 0:02:06]} d5 {[%emt 0:00:28]} 7. h3 {[%emt 0:05:13] D91: Grünfeld: 4 Nf3 Bg7 5 Bg5.} Be6 {[%emt 0:07:35]} 8. Qb3 {[%emt 0:04:13] [#]} dxc4 $146 {[%emt 0:05:14]} ({Predecessor:} 8... Qc7 9. Bf4 Qb6 10. c5 Qxb3 11. axb3 Bf5 12. Nh4 Be6 13. Bd3 Nbd7 14. b4 a6 {1-0 (51) Richter,J (2055)-Nyizsnyik,B (1856) Balatonlelle 2006}) 9. Bxc4 {[%emt 0:05:21] White is slightly better.} Bxc4 {[%emt 0:00:05]} 10. Qxc4 {[%emt 0:00:01]} Qa5 {[%emt 0:06:57]} 11. O-O {[%emt 0:05:50]} Qf5 {[%emt 0:03:23] Prevents e4.} 12. Qb4 {[%emt 0:05:35] White is more active.} Nbd7 {[%emt 0:03:04]} 13. Qxe7 {[%emt 0:02:54]} Rfe8 {[%emt 0:00:30]} 14. Qa3 {[%emt 0:00:45]} h6 {[%emt 0:00:49]} 15. Bf4 {[%emt 0:01:12]} g5 {[%emt 0:00:16]} 16. Bg3 {[%emt 0:02:32]} h5 {[%emt 0:04:14]} 17. Rae1 {[%emt 0:07:48]} Nf8 {[%emt 0:10:50]} (17... b5 $16 18. Qd6 Rac8) 18. h4 {[%emt 0:07:19]} gxh4 {[%emt 0:03:17]} 19. Nxh4 {[%emt 0:00:36]} Qg4 {[%emt 0:04:10]} 20. Qc5 {[%emt 0:08:23]} (20. Qb3 $18) 20... b5 $2 {[%emt 0:02:58] [#]} (20... Ng6 $16) 21. Qxc6 $18 {[%emt 0:03:19]} b4 {[%emt 0:02:18]} 22. Ne2 {[%emt 0:00:56]} Rac8 {[%emt 0:00:36]} 23. Qa4 {[%emt 0:01:15]} Rc4 {[%emt 0:03:03]} 24. f3 {[%emt 0:04:35]} Qg5 {[%emt 0:01:52]} 25. e4 {[%emt 0:00:10] White is clearly winning.} Rd8 {[%emt 0:10:17]} 26. Nf5 {[%emt 0:02:25]} Ng6 {[%emt 0:02:11] Against Ne7+} 27. Qb3 {[%emt 0:01:53]} Rc6 {[%emt 0:04:58]} 28. Bf2 {[%emt 0:01:16] [#] Threatens to win with Be3.} Qd2 {[%emt 0:04:20]} 29. d5 {[%emt 0:05:07]} Rcc8 {[%emt 0:01:23]} 30. Be3 {[%emt 0:00:48]} Qc2 {[%emt 0:00:04]} 31. Ned4 {[%emt 0:00:04]} Qxb3 {[%emt 0:00:45]} 32. axb3 {[%emt 0:00:06]} Ne5 {[%emt 0:27:40] Black did not feel at home in the position after the opening.  Weighted Error Value: White=0.18 (very precise) /Black=0.35} (32... Nxd5 $142 33. exd5 Rxd5 34. Nxg7 Kxg7) 1-0

[Event "16th HSG Open-A 2022"]
[Site "Hilversum"]
[Date "2022.06.19"]
[Round "6.11"]
[White "Wagenvoorde, Guido"]
[Black "Albers, Sasa"]
[Result "0-1"]
[ECO "E17"]
[WhiteElo "2090"]
[BlackElo "2117"]
[Annotator "NA RC"]
[PlyCount "88"]
[EventDate "2022.06.17"]
[EventCountry "NED"]
[SourceTitle "playchess.com"]
[Source "ChessBase"]
[SourceQuality "1"]
[TimeControl "6600+10"]

1. d4 {[%emt 0:02:13]} Nf6 {[%emt 0:00:05]} 2. c4 {[%emt 0:00:05]} e6 {[%emt 0:00:03]} 3. Nf3 {[%emt 0:00:05]} b6 {[%emt 0:00:08]} 4. g3 {[%emt 0:00:08]} Bb7 {[%emt 0:00:05]} 5. Bg2 {[%emt 0:00:10]} Be7 {[%emt 0:00:05]} 6. O-O {[%emt 0:00:09]} O-O {[%emt 0:00:04]} 7. d5 {[%emt 0:00:11]} exd5 {[%emt 0:00:24]} 8. Nh4 {[%emt 0:00:09]} c6 {[%emt 0:00:10]} 9. cxd5 {[%emt 0:00:18]} Nxd5 {[%emt 0:00:26]} 10. Nf5 {[%emt 0:00:07]} Nc7 {[%emt 0:05:10]} 11. e4 {[%emt 0:00:23]} d5 {[%emt 0:02:16]} 12. exd5 {[%emt 0:00:10]} cxd5 {[%emt 0:07:58]} 13. Qg4 {[%emt 0:26:57]} Bf6 {[%emt 0:07:53]} 14. Nc3 {[%emt 0:01:24]} Nc6 {[%emt 0:09:18]} 15. Rd1 {[%emt 0:01:35]} Ne7 {[%emt 0:09:38]} 16. Bf4 {[%emt 0:16:43]} Nxf5 {[%emt 0:09:09]} 17. Qxf5 {[%emt 0:00:51]} Qc8 {[%emt 0:00:35]} 18. Qh5 {[%emt 0:08:12]} Bxc3 {[%emt 0:06:59]} 19. bxc3 {[%emt 0:01:04]} Ne6 {[%emt 0:00:05]} 20. Be5 {[%emt 0:04:49]} Rd8 {[%emt 0:02:47]} 21. Bh3 {[%emt 0:05:13]} d4 {[%emt 0:12:54]} 22. Rd3 {[%emt 0:05:08]} Qc6 {[%emt 0:06:22]} 23. f3 {[%emt 0:00:42]} Rd5 {[%emt 0:07:47]} 24. cxd4 {[%emt 0:09:54]} f6 {[%emt 0:05:00]} 25. Qg4 {[%emt 0:03:02]} Ng5 {[%emt 0:00:08]} 26. Bf4 {[%emt 0:04:04]} Rxd4 {[%emt 0:03:15]} 27. Rc1 {[%emt 0:05:04]} Nxh3+ {[%emt 0:13:07]} 28. Qxh3 {[%emt 0:01:07]} Qd5 {[%emt 0:00:01]} 29. Re3 {[%emt 0:02:47]} Rd1+ {[%emt 0:01:13]} 30. Rxd1 {[%emt 0:00:08]} Qxd1+ {[%emt 0:00:01]} 31. Kf2 {[%emt 0:00:09]} Qc2+ {[%emt 0:00:37]} 32. Re2 {[%emt 0:00:18]} Qc5+ {[%emt 0:00:01]} 33. Kg2 {[%emt 0:00:19]} Bd5 {[%emt 0:01:01]} 34. Qd7 {[%emt 0:00:44]} Bf7 {[%emt 0:00:15]} 35. Rd2 {[%emt 0:03:30]} Qc4 {[%emt 0:00:21]} 36. a4 {[%emt 0:02:04]} Re8 {[%emt 0:00:14]} 37. Qxa7 {[%emt 0:00:49]} g5 {[%emt 0:00:19]} 38. Bc7 {[%emt 0:02:17]} Re2+ {[%emt 0:00:04]} 39. Rxe2 {[%emt 0:00:01]} Qxe2+ {[%emt 0:00:01]} 40. Kg1 {[%emt 0:00:01]} Qe3+ {[%emt 0:00:10]} 41. Kg2 {[%emt 0:00:02]} Bd5 {[%emt 0:00:18]} 42. Qb8+ {[%emt 0:02:43]} Kg7 {[%emt 0:00:04]} 43. Bf4 {[%emt 0:00:17]} Qxf3+ {[%emt 0:00:10]} 44. Kh3 {[%emt 0:00:06]} Qh5# {[%emt 0:00:49]} 0-1

[Event "16th HSG Open-A 2022"]
[Site "Hilversum"]
[Date "2022.06.19"]
[Round "6.12"]
[White "Floor, Dirk"]
[Black "Jonsson, Gauti Pall"]
[Result "0-1"]
[ECO "A84"]
[WhiteElo "2203"]
[BlackElo "2065"]
[Annotator "TA"]
[PlyCount "68"]
[EventDate "2022.06.17"]
[EventCountry "NED"]
[SourceTitle "playchess.com"]
[Source "ChessBase"]
[SourceQuality "1"]
[TimeControl "6600+10"]

{[%evp 12,68,42,45,39,30,36,-31,-9,-18,-14,-40,-35,-50,7,0,27,11,34,-14,48,39,37,5,29,-78,-75,-62,-69,-94,-86,-52,-59,-148,-147,-195,-177,-197,-218,-575,-566,-539,-510,-543,-536,-588,-633,-593,-513,-935,-752,-926,-917,-1300,-1271,-29985,-29986,-29982,-29983]} 1. d4 {[%emt 0:00:02]} e6 {[%emt 0:00:48]} 2. c4 {[%emt 0:01:12]} f5 {[%emt 0:00:57]} 3. Nf3 {[%emt 0:00:29]} Nf6 {[%emt 0:01:22]} 4. a3 {[%emt 0:01:21]} Be7 {[%emt 0:02:50]} 5. g3 {[%emt 0:04:53]} O-O {[%emt 0:02:49]} 6. Bg2 {[%emt 0:00:05]} d6 {[%emt 0:01:24]} 7. O-O {[%emt 0:00:14] [#]} Nbd7 $146 {[%emt 0:05:08] A84: Dutch Defence: 2 c4 Miscellaneous.} ({Predecessor:} 7... Ne4 8. b4 Nd7 9. Qb3 Bf6 10. Bb2 Qe7 11. Nbd2 Ng5 12. Nxg5 Bxg5 13. f4 Bf6 14. e4 fxe4 15. Nxe4 {0-1 (38) Tosic,D (1843)-Ciric,P (2037) Knic 2019}) 8. Ng5 {[%emt 0:07:24]} Nb6 {[%emt 0:02:31]} 9. d5 {[%emt 0:02:01]} (9. Qc2 $14) 9... e5 {[%emt 0:04:38] Black is slightly better.} 10. b3 {[%emt 0:20:04]} h6 {[%emt 0:04:22]} 11. Ne6 {[%emt 0:00:33]} Bxe6 {[%emt 0:01:28]} 12. dxe6 {[%emt 0:01:17]} Qc8 {[%emt 0:02:31]} (12... d5 $15) 13. Nc3 $11 {[%emt 0:03:23]} c6 {[%emt 0:02:06]} 14. a4 {[%emt 0:02:39] Threatens to win with a5.} a5 {[%emt 0:06:27]} 15. e4 {[%emt 0:12:11]} ({But not} 15. Be3 Ra6 $15) (15. Bh3 $14 {deserves consideration.}) 15... Qxe6 {[%emt 0:07:55]} ({Black should try} 15... fxe4 $1 $11 16. Be3 Ra6) 16. Bh3 $14 {[%emt 0:01:22]} g6 {[%emt 0:11:36]} 17. Bxh6 {[%emt 0:02:19]} Rf7 {[%emt 0:02:22]} 18. Be3 {[%emt 0:07:37]} (18. Qd2 $11 Nfd7 19. Be3) 18... Rh7 $17 {[%emt 0:04:02]} 19. Bg2 {[%emt 0:00:21]} Nbd7 {[%emt 0:01:59]} 20. f3 {[%emt 0:09:37]} Kg7 {[%emt 0:01:20]} (20... f4 {feels hotter.} 21. gxf4 exf4 22. Bxf4 g5) 21. Ra2 {[%emt 0:02:39]} Rah8 {[%emt 0:00:36]} 22. Bh1 {[%emt 0:00:33] [#]} (22. h3 $15) 22... Nh5 $1 {[%emt 0:01:37][%cal Oh5g3] aiming for ...Nxg3!} 23. Ne2 {[%emt 0:03:54] [#]} (23. exf5 $17 {was necessary.} gxf5 24. Rg2) 23... Nxg3 $1 $19 {[%emt 0:02:25][%mdl 512]} 24. Nxg3 {[%emt 0:01:43] Strongly threatening f4.} f4 {[%emt 0:40:57]} 25. Nf5+ {[%emt 0:02:30]} (25. Rg2) 25... gxf5 {[%emt 0:00:00]} 26. Rg2+ {[%emt 0:00:43]} Kf8 {[%emt 0:00:00]} 27. exf5 {[%emt 0:00:13]} Qxf5 {[%emt 0:00:00]} 28. Bd2 {[%emt 0:00:57]} d5 {[%emt 0:00:00]} 29. Be1 {[%emt 0:00:55]} Nf6 {[%emt 0:00:00]} 30. Bf2 {[%emt 0:02:47]} (30. Qd2 $142 Qh3 31. Rff2) 30... Rh3 {[%emt 0:00:00]} 31. Bb6 {[%emt 0:03:52]} Nd7 {[%emt 0:00:00]} 32. Ba7 {[%emt 0:03:50]} b6 {[%emt 0:00:00] And now ...Bc5+ would win.} 33. Re1 {[%emt 0:00:14]} Bc5+ {[%emt 0:00:00]} 34. Kf1 {[%emt 0:00:05]} Rxh2 {[%emt 0:00:00] Weighted Error Value: White=1.00/Black=0.20 (precise)} 0-1